bitfinex/quotes_ETHUSD_20251107
["timestamp","ask_amount","ask_price","bid_price","bid_amount"]
[1762499903072,1.259712,3367.4,3366.9,2.97107144]
[1762499903274,0.002,3367.0,3366.9,0.001]
[1762499904673,4.24692249,3367.8,3366.9,0.001]
[1762499904674,1.26277655,3367.9,3366.9,0.001]
[1762499904857,1.259712,3367.5,3366.9,2.9710108]
[1762499905444,1.259712,3367.5,3367.0,0.02970002]
[1762499905771,1.259712,3367.5,3367.2,2.96982016]
[1762499905978,1.259712,3367.5,3367.3,2.96972163]
[1762499906176,0.002,3367.8,3367.3,2.96972163]
[1762499906478,0.00306455,3367.9,3367.4,0.9688965]
[1762499906774,0.00306455,3367.9,3367.7,2.96931829]
[1762499906977,0.00306455,3367.9,3367.8,2.96929746]
[1762499907146,0.00306455,3367.9,3367.8,2.99899043]
[1762499907881,0.00306455,3367.9,3367.8,3.44339746]
[1762499908056,0.00306455,3367.9,3367.8,4.57951664]
[1762499908259,0.00306455,3367.9,3367.8,4.54977629]
[1762499908463,0.00306455,3367.9,3367.8,4.69777629]
[1762499909444,0.00306455,3367.9,3367.8,4.72746926]
[1762499910578,0.00306455,3367.9,3367.8,4.57946926]
[1762499910786,0.00306455,3367.9,3367.8,4.69777629]
[1762499911153,0.00306455,3367.9,3367.8,4.81672177]
[1762499913294,0.00306455,3367.9,3367.8,0.90822431]
[1762499913494,0.00306455,3367.9,3367.8,3.11729746]
[1762499914760,0.00306455,3367.9,3367.8,0.148]
[1762499914966,0.00506455,3367.9,3367.8,0.148]
[1762499915471,0.00706455,3367.9,3367.8,0.148]
[1762499915869,0.00506455,3367.9,3367.8,0.148]
[1762499917695,0.00306455,3367.9,3367.8,0.933846]
[1762499917880,0.00306455,3367.9,3367.8,3.59139746]
[1762499918410,0.00306455,3367.9,3367.8,0.148]
[1762499918794,0.00306455,3367.9,3367.8,3.11729746]
[1762499919312,0.00306455,3367.9,3367.8,3.14699043]
[1762499919509,0.00306455,3367.9,3367.8,3.80514421]
[1762499920106,0.00306455,3367.9,3367.8,3.77545124]
[1762499920269,0.00306455,3367.9,3367.8,0.80615378]
[1762499920772,0.00306455,3367.9,3367.8,3.77545124]
[1762499921307,0.00306455,3367.9,3367.8,0.80615378]
[1762499921512,0.00306455,3367.9,3367.8,3.77545124]
[1762499921809,0.00306455,3367.9,3367.8,4.29754421]
[1762499922240,0.00306455,3367.9,3367.8,4.79434421]
[1762499923926,0.00306455,3367.9,3367.8,4.29754421]
[1762499924641,0.00706455,3367.9,3367.8,0.65815378]
[1762499924840,0.00706455,3367.9,3366.9,0.001]
[1762499925139,0.002,3367.5,3367.3,2.9696681]
[1762499925499,0.002,3367.5,3367.1,2.96985751]
[1762499925699,0.002,3367.5,3367.3,2.96967901]
[1762499926497,0.00306455,3367.9,3366.9,0.149]
[1762499926498,0.002,3367.4,3366.9,0.149]
[1762499926695,4.13615246,3367.9,3366.9,0.149]
[1762499926696,0.002,3367.2,3367.0,2.96994481]
[1762499926938,1.259712,3367.8,3367.1,0.61216507]
[1762499927098,1.261712,3367.8,3367.1,0.61216507]
[1762499927419,1.261712,3367.8,3367.1,3.58206742]
[1762499928336,1.261712,3367.8,3367.1,0.61216507]
[1762499928631,1.261712,3367.8,3367.1,3.58205757]
[1762499928827,0.002,3367.2,3366.9,0.001]
[1762499929231,0.002,3367.2,3366.9,2.97102846]
[1762499929532,0.002,3367.2,3367.0,2.96998664]
[1762499930027,0.002,3367.2,3366.9,0.001]
[1762499930028,0.002,3367.1,3366.9,2.97105862]
[1762499930236,0.002,3367.1,3367.0,3.56413366]
[1762499930435,0.002,3367.0,3366.9,0.001]
[1762499931201,0.004,3367.0,3366.9,0.001]
[1762499932219,0.002,3367.0,3366.9,0.001]
[1762499933715,0.002,3367.0,3366.9,0.03070091]
[1762499934533,0.002,3367.0,3366.9,0.001]
[1762499936332,0.002,3367.0,3366.9,0.69499584]
[1762499937118,1.261712,3367.7,3366.9,0.72469675]
[1762499937318,0.148,3367.4,3366.9,0.03070091]
[1762499937844,0.148,3367.4,3366.9,0.001]
[1762499938260,1.261712,3367.7,3366.9,0.4978]
[1762499938544,0.148,3367.6,3367.0,0.148]
[1762499938743,0.002,3367.1,3366.9,0.001]
[1762499938952,0.148,3367.4,3366.9,0.67722635]
[1762499939147,0.148,3367.4,3366.9,0.001]
[1762499939350,0.00506455,3367.9,3367.0,0.4968]
[1762499939526,0.148,3367.7,3367.1,0.17769914]
[1762499939732,0.148,3367.7,3367.1,3.14760825]
[1762499939955,0.148,3367.7,3367.1,0.148]
[1762499940155,0.148,3367.7,3367.1,1.18558535]
[1762499942076,0.15,3367.7,3367.1,1.18558535]
[1762499942365,0.15,3367.7,3367.1,4.15548622]
[1762499942525,0.148,3367.7,3367.2,0.52649826]
[1762499942729,0.00306455,3367.9,3367.6,0.4924]
[1762499943036,0.00306455,3367.9,3367.7,0.02969385]
[1762499943221,0.00306455,3367.9,3367.6,0.34619873]
[1762499944543,0.00306455,3367.9,3367.6,0.84299873]
[1762499944884,0.00306455,3367.9,3367.6,0.34619873]
[1762499945186,0.002,3367.7,3367.5,0.148]
[1762499945345,0.002,3367.6,3367.5,0.148]
[1762499945980,0.002,3367.6,3367.2,0.148]
[1762499946956,0.002,3367.3,3367.2,0.148]
[1762499948475,0.15,3367.8,3367.4,2.969576]
[1762499948476,0.148,3367.8,3367.4,2.969576]
[1762499948677,0.00306455,3367.9,3367.5,0.74031687]
[1762499948882,0.00306455,3367.9,3367.5,1.35542126]
[1762499949461,0.00306455,3367.9,3367.5,4.32497165]
[1762499949971,0.00306455,3367.9,3367.6,0.02969473]
[1762499950368,0.00306455,3367.9,3367.5,1.35542126]
[1762499950573,0.00306455,3367.9,3367.5,0.148]
[1762499955524,1.409712,3367.6,3367.4,3.78999999]
[1762499955684,0.002,3367.5,3367.4,3.78999999]
[1762499956280,0.004,3367.5,3367.0,0.149]
[1762499956590,0.002,3367.1,3367.0,0.001]
[1762499960389,0.15,3367.1,3367.0,0.001]
[1762499961587,0.148,3367.1,3367.0,0.001]
[1762499963925,0.15,3367.1,3367.0,0.001]
[1762499964635,0.148,3367.1,3367.0,0.4912]
[1762499964790,0.15,3367.1,3367.0,0.001]
[1762499964985,0.148,3367.1,3367.0,0.001]
[1762499965208,0.15,3367.1,3367.0,0.001]
[1762499973436,0.152,3367.1,3367.0,0.001]
[1762499974109,0.15,3367.1,3367.0,0.001]
[1762499975623,1.411712,3367.1,3367.0,0.001]
[1762499975819,4.38162676,3367.1,3367.0,0.001]
[1762499976019,8.62398717,3367.1,3367.0,0.001]
[1762499976238,1.411712,3367.1,3367.0,0.001]
[1762499977851,4.38162676,3367.1,3367.0,0.001]
[1762499978209,8.62398717,3367.1,3367.0,0.001]
[1762499979838,4.38162676,3367.1,3367.0,0.001]
[1762499980625,8.62398717,3367.1,3367.0,0.001]
[1762499982246,9.46225062,3367.1,3367.0,0.001]
[1762499982544,9.02949117,3367.1,3367.0,0.001]
[1762499982743,9.46225062,3367.1,3367.0,0.001]
[1762499984245,9.46225062,3367.1,3366.6,0.001]
[1762499984246,9.02949117,3367.1,3366.6,0.001]
[1762499984558,9.02949117,3367.1,3365.4,3.78999999]
[1762499984559,2.97131721,3365.6,3364.9,0.1806]
[1762499984847,5.50407241,3365.2,3364.7,0.4959]
[1762499985147,5.50407241,3365.2,3364.5,0.4959]
[1762499986318,8.47566399,3365.2,3364.5,0.4959]
[1762499986641,8.47566399,3365.2,3364.3,0.001]
[1762499986642,8.47766399,3365.2,3364.3,0.001]
[1762499986841,8.91042344,3365.2,3364.3,0.001]
[1762499987418,5.93883186,3365.2,3364.3,0.001]
[1762499987617,8.47766399,3365.2,3364.3,0.001]
[1762499988440,5.50607241,3365.2,3364.3,0.001]
[1762499988845,5.50607241,3365.2,3364.3,0.4969]
[1762499989161,5.50407241,3365.2,3364.6,0.4959]
[1762499991049,1.259712,3365.2,3365.1,0.4675]
[1762499991622,1.259712,3365.2,3365.1,1.1551]
[1762499992338,1.259712,3365.2,3365.1,0.6592]
[1762499992536,1.259712,3365.2,3365.1,1.1551]
[1762499993353,4.24236041,3365.6,3365.1,1.56779619]
[1762499993565,1.259712,3365.5,3365.2,0.9584]
[1762499993739,1.259712,3365.5,3365.3,0.4959]
[1762499993940,1.259712,3365.5,3365.4,0.4625]
[1762499994343,1.407712,3365.5,3365.4,0.9584]
[1762499996068,0.148,3365.5,3365.4,0.9584]
[1762499996268,4.24236041,3366.0,3365.4,0.9584]
[1762499996476,4.24236041,3366.0,3365.5,0.4959]
[1762499996477,1.259712,3365.9,3365.5,0.4959]
[1762499997971,1.259712,3365.9,3365.8,0.4625]
[1762499999372,1.259712,3365.9,3365.1,0.1967]
[1762499999373,1.261712,3365.9,3365.1,0.1967]
[1762499999550,4.24236041,3365.4,3365.1,0.6926]
[1762499999964,4.24236041,3365.4,3365.2,0.4959]
[1762500000159,4.24236041,3365.4,3365.1,0.1967]
[1762500000357,4.24236041,3365.4,3365.1,0.005]
[1762500000559,4.24236041,3365.7,3365.3,0.4625]
[1762500000936,4.24236041,3365.7,3365.1,0.6926]
[1762500000937,5.50207241,3365.7,3365.6,0.4625]
[1762500001339,5.50207241,3365.7,3365.4,0.4959]
[1762500002376,5.50207241,3365.7,3365.6,0.4625]
[1762500002743,5.50207241,3365.7,3365.6,0.9584]
[1762500002938,1.259712,3365.7,3365.6,0.9584]
[1762500003172,4.24236041,3365.9,3365.6,0.9584]
[1762500003474,5.50207241,3365.9,3365.8,0.4625]
[1762500004497,5.50407241,3365.9,3365.1,0.6936]
[1762500004788,4.24236041,3365.5,3365.1,0.6936]
[1762500005195,4.24236041,3365.5,3365.1,0.1977]
[1762500005692,4.24236041,3365.5,3365.1,0.6936]
[1762500006047,0.148,3365.4,3365.1,0.6936]
[1762500006448,0.148,3365.4,3365.2,0.4959]
[1762500006650,0.148,3365.4,3365.3,0.4625]
[1762500007065,1.259712,3365.9,3365.3,0.98811503]
[1762500007390,0.148,3365.7,3365.3,3.81338817]
[1762500007560,0.148,3365.7,3365.4,0.4959]
[1762500007760,0.148,3365.7,3365.6,0.4625]
[1762500008151,0.148,3365.7,3365.2,0.4959]
[1762500009190,1.259712,3365.9,3365.1,0.1977]
[1762500009379,0.148,3365.4,3365.2,0.4959]
[1762500009772,1.259712,3365.9,3365.1,0.006]
[1762500009773,5.63178195,3365.6,3365.1,0.006]
[1762500010019,1.259712,3365.8,3365.1,0.6936]
[1762500010225,1.259712,3365.8,3365.5,0.4625]
[1762500010579,0.002,3365.6,3365.2,0.4959]
[1762500010778,0.002,3365.6,3365.1,0.006]
[1762500010979,1.261712,3365.6,3365.1,0.006]
[1762500011378,2.97324296,3365.6,3365.1,0.006]
[1762500011722,1.261712,3365.6,3365.1,0.006]
[1762500011924,0.002,3365.2,3365.1,0.006]
[1762500012296,1.261712,3365.2,3365.1,0.006]
[1762500012695,2.97359158,3365.2,3365.1,0.006]
[1762500013542,0.002,3365.2,3365.1,0.006]
[1762500013926,2.97359158,3365.2,3365.1,0.006]
[1762500014756,1.259712,3365.3,3365.1,0.006]
[1762500014940,1.665216,3365.6,3365.1,0.5009]
[1762500015237,1.259712,3365.8,3365.1,0.6985]
[1762500015438,1.259712,3365.6,3365.2,0.4806]
[1762500015790,2.97125354,3365.6,3365.2,0.4806]
[1762500016012,1.259712,3365.5,3365.2,0.4806]
[1762500016187,1.259712,3365.6,3365.2,0.4806]
[1762500016391,4.23096381,3365.6,3365.2,0.4806]
[1762500016637,4.23096381,3365.6,3365.1,0.2036]
[1762500016638,1.259712,3365.8,3365.1,0.2036]
[1762500017137,1.259712,3365.4,3365.1,0.006]
[1762500017289,1.259712,3365.7,3365.1,0.2036]
[1762500017633,1.259712,3365.8,3365.2,0.4806]
[1762500018694,4.23082685,3365.8,3365.2,0.4806]
[1762500019532,1.259712,3365.8,3365.2,0.4806]
[1762500019734,2.97115067,3365.7,3365.2,0.4806]
[1762500019897,0.148,3365.3,3365.2,0.4806]
[1762500020542,0.148,3365.3,3365.2,0.9755]
[1762500020725,0.148,3365.3,3365.2,1.00521591]
[1762500021054,0.148,3365.3,3365.2,0.4949]
[1762500021201,0.148,3365.6,3365.2,0.9755]
[1762500021601,0.148,3365.6,3365.5,0.4949]
[1762500023639,0.148,3365.6,3365.5,0.9755]
[1762500025601,0.148,3366.0,3365.5,4.34153454]
[1762500025843,0.148,3366.0,3365.6,0.4806]
[1762500025998,0.148,3366.0,3365.9,0.4949]
[1762500026652,0.148,3366.0,3365.9,0.9755]
[1762500026951,0.15,3366.0,3365.4,4.41859999]
[1762500027119,4.24501444,3365.7,3365.4,4.41859999]
[1762500027369,4.24501444,3365.7,3365.4,3.93799999]
[1762500027577,4.24501444,3365.7,3365.6,0.4949]
[1762500027962,4.24501444,3365.7,3365.6,0.9755]
[1762500028394,0.148,3366.0,3365.6,0.9755]
[1762500028592,0.148,3366.0,3365.9,0.4949]
[1762500030396,0.148,3366.0,3365.9,0.9755]
[1762500033701,0.002,3366.2,3365.9,0.9755]
[1762500033906,0.15,3366.2,3366.1,0.6925]
[1762500034278,0.15,3366.2,3366.1,1.1731]
[1762500035479,0.002,3366.2,3366.1,4.55830309]
[1762500039001,0.002,3366.2,3366.1,4.58801106]
[1762500039416,0.002,3366.6,3366.5,2.97044408]
[1762500039728,0.002,3366.6,3366.5,3.58244408]
[1762500039947,0.002,3366.6,3366.5,6.71648529]
[1762500040427,0.002,3366.9,3366.8,2.97017939]
[1762500040613,0.002,3366.9,3366.8,3.43417939]
[1762500040816,0.002,3366.9,3366.8,4.03647939]
[1762500049724,0.002,3366.9,3366.8,4.06618118]
[1762500049983,0.002,3366.9,3366.8,4.87819824]
[1762500052489,0.002,3366.9,3366.8,8.66819823]
[1762500054163,0.002,3366.9,3366.8,4.87819824]
[1762500056190,1.261712,3368.4,3367.5,2.96953764]
[1762500056371,0.002,3368.3,3367.5,2.96953764]
[1762500056571,0.002,3368.3,3367.6,2.96946699]
[1762500057293,0.002,3368.3,3367.7,2.96937825]
[1762500057513,7.10604242,3368.8,3367.8,2.96923592]
[1762500057712,2.96853477,3368.7,3367.7,2.96934776]
[1762500057916,1.259712,3368.4,3367.7,2.96934776]
[1762500058913,1.259712,3368.4,3367.6,0.4543]
[1762500059213,1.261712,3368.4,3367.6,0.4543]
[1762500059415,1.261712,3368.4,3367.6,3.42374893]
[1762500059710,1.261712,3368.4,3367.8,2.96921975]
[1762500059919,1.261712,3368.4,3367.7,2.96938563]
[1762500060080,1.259712,3368.4,3367.8,2.96926667]
[1762500060279,1.259712,3368.4,3367.9,2.96913647]
[1762500060511,1.259712,3368.4,3367.7,0.4543]
[1762500060712,1.259712,3368.4,3367.9,2.96918734]
[1762500060888,1.259712,3368.7,3367.8,2.96926544]
[1762500061282,4.23024816,3368.7,3367.8,2.96926544]
[1762500061915,4.22824816,3368.7,3367.8,2.96926544]
[1762500062088,1.259712,3368.4,3367.7,0.4543]
[1762500062284,1.259712,3368.4,3367.7,3.42368249]
[1762500062804,1.259712,3368.4,3367.8,2.96924546]
[1762500063006,4.13556111,3368.8,3367.8,4.06282448]
[1762500063318,1.259712,3368.7,3368.1,2.96895453]
[1762500063709,1.259712,3368.7,3368.1,3.15075453]
[1762500064012,0.005,3368.9,3368.3,2.96878961]
[1762500064316,0.005,3368.9,3368.1,3.15082999]
[1762500064317,1.259712,3368.7,3368.1,0.1818]
[1762500064529,1.259712,3368.7,3367.8,0.63929271]
[1762500064530,1.259712,3368.7,3367.9,0.4543]
[1762500064813,1.259712,3368.7,3367.9,2.94548579]
[1762500065051,1.259712,3368.7,3368.0,2.96909579]
[1762500065206,1.259712,3368.7,3367.9,3.42346252]
[1762500065404,1.259712,3368.7,3368.0,2.96911815]
[1762500065816,1.259712,3368.7,3367.7,2.96932978]
[1762500066018,0.002,3368.6,3367.8,2.9692801]
[1762500066238,0.148,3368.5,3367.9,0.148]
[1762500070120,0.148,3368.5,3367.9,3.11720848]
[1762500070542,0.148,3368.5,3367.9,0.148]
[1762500071548,0.148,3368.5,3368.0,0.4552]
[1762500071729,0.148,3368.5,3368.0,3.42425954]
[1762500072127,0.148,3368.5,3368.1,0.4552]
[1762500072453,0.005,3368.9,3366.8,3.81189115]
[1762500072454,0.002,3368.0,3366.8,3.81189115]
[1762500072662,0.002,3367.8,3367.2,0.4552]
[1762500072836,2.97130665,3367.8,3367.2,0.4552]
[1762500073224,2.97132259,3367.8,3367.0,0.96016911]
[1762500073939,2.96940063,3367.7,3367.0,0.96016911]
[1762500074549,0.002,3367.8,3367.1,0.001]
[1762500074550,4.13556111,3367.6,3367.1,0.001]
[1762500074855,2.96961348,3367.5,3367.1,0.001]
[1762500075153,0.002,3367.2,3367.1,0.001]
[1762500075556,4.13556111,3367.6,3367.1,0.001]
[1762500075853,4.13556111,3367.6,3367.1,0.4754]
[1762500076726,7.10509742,3367.6,3367.1,0.4754]
[1762500076948,7.10509742,3367.6,3367.1,0.001]
[1762500077338,4.13756111,3367.6,3367.1,0.001]
[1762500077532,4.13556111,3367.6,3367.1,0.001]
[1762500077940,2.96941319,3367.7,3367.1,0.001]
[1762500078141,7.1049743,3367.7,3367.1,0.001]
[1762500078355,2.96949283,3367.6,3367.1,0.001]
[1762500078768,2.97149283,3367.6,3367.1,0.001]
[1762500079262,0.002,3367.6,3367.1,0.001]
[1762500079447,0.002,3367.2,3367.1,0.001]
[1762500079648,2.97182656,3367.2,3367.1,0.001]
[1762500080275,2.97382656,3367.2,3367.1,0.001]
[1762500080850,0.002,3367.2,3367.1,0.001]
[1762500082979,4.23353856,3367.2,3367.1,0.001]
[1762500084104,0.46579418,3369.0,3367.1,0.6698]
[1762500084264,2.96873482,3368.5,3367.3,0.4744]
[1762500084590,0.148,3367.7,3367.3,0.90164604]
[1762500084786,0.148,3367.7,3367.6,2.9694738]
[1762500084988,0.148,3367.7,3367.6,3.4438738]
[1762500085148,0.148,3367.7,3367.6,3.8990738]
[1762500085775,0.148,3367.7,3367.6,0.9296]
[1762500086794,0.148,3367.7,3367.6,3.8990738]
[1762500086965,0.148,3367.7,3367.6,4.67518537]
[1762500087166,0.148,3368.0,3367.6,1.70571157]
[1762500087377,0.148,3368.0,3367.7,0.4552]
[1762500087618,0.148,3368.0,3367.9,0.4744]
[1762500087969,0.148,3368.0,3367.9,0.9296]
[1762500092002,0.148,3368.0,3367.6,0.4552]
[1762500092501,0.148,3367.8,3367.6,0.4552]
[1762500092878,0.148,3367.8,3367.7,0.4744]
[1762500094809,0.148,3367.8,3367.7,0.9296]
[1762500101507,0.148,3367.8,3367.7,3.89898563]
[1762500101711,0.148,3367.8,3367.7,4.58583049]
[1762500102917,0.148,3367.8,3367.7,1.61644486]
[1762500103128,0.148,3367.8,3367.7,0.9296]
[1762500104643,0.15,3367.8,3367.3,0.89225832]
[1762500104844,0.148,3367.6,3367.2,6.75981284]
[1762500105049,0.148,3367.6,3367.3,3.46043529]
[1762500105255,0.148,3367.6,3367.4,2.96964321]
[1762500105417,0.148,3367.6,3367.5,0.4934]
[1762500108953,0.148,3367.6,3367.4,0.4907]
[1762500109120,0.148,3367.6,3367.4,3.4603452]
[1762500109315,0.148,3367.6,3367.5,0.4934]
[1762500109520,0.148,3367.6,3367.5,0.9841]
[1762500112555,0.148,3367.6,3367.5,3.95366198]
[1762500112732,0.15,3368.0,3367.6,2.9694738]
[1762500112928,0.15,3368.0,3367.9,0.4934]
[1762500113440,0.15,3368.0,3367.9,0.9841]
[1762500113641,0.15,3368.0,3367.9,3.95330929]
[1762500113816,0.15,3368.0,3367.9,0.9841]
[1762500114220,0.15,3368.0,3367.9,3.95330929]
[1762500114832,0.15,3368.0,3367.9,0.9841]
[1762500115854,0.15,3368.0,3367.9,0.4934]
[1762500116752,0.15,3368.0,3367.9,0.9841]
[1762500120724,0.15,3368.0,3367.9,1.37943502]
[1762500121429,0.15,3368.0,3367.9,4.34864431]
[1762500121628,0.002,3368.0,3367.9,4.34864431]
[1762500122557,0.002,3368.0,3367.9,4.49664431]
[1762500125128,0.002,3368.0,3367.9,1.03673502]
[1762500125424,0.002,3368.0,3367.8,0.148]
[1762500125631,4.24226886,3368.0,3367.8,0.148]
[1762500125840,0.148,3367.8,3367.5,0.001]
[1762500128934,0.148,3367.8,3367.7,0.4934]
[1762500129130,0.148,3367.8,3367.5,0.001]
[1762500129131,0.002,3367.6,3367.5,0.001]
[1762500129362,4.24226886,3367.6,3367.5,0.001]
[1762500130235,7.21374266,3367.6,3367.5,0.001]
[1762500130744,7.61924666,3367.6,3367.5,0.001]
[1762500133303,4.24226886,3367.6,3367.5,0.001]
[1762500133489,4.24026886,3367.6,3367.5,0.001]
[1762500134061,4.24226886,3367.6,3367.5,0.001]
[1762500134261,7.21174266,3367.6,3367.5,0.001]
[1762500134461,2.96946921,3367.7,3367.5,0.001]
[1762500134661,2.9694738,3367.6,3367.5,0.001]
[1762500135098,7.21174266,3367.6,3367.5,0.001]
[1762500136370,4.24226886,3367.6,3367.5,0.001]
[1762500137063,7.21174266,3367.6,3367.5,0.001]
[1762500137763,7.20974266,3367.6,3367.5,0.001]
[1762500138363,2.9694738,3367.6,3367.5,0.001]
[1762500138582,2.9714738,3367.6,3367.5,0.001]
[1762500139318,2.9694738,3367.6,3367.5,0.001]
[1762500139791,7.20968798,3367.7,3367.5,0.001]
[1762500141122,2.9714738,3367.6,3367.5,0.001]
[1762500143204,2.9734738,3367.6,3367.5,0.001]
[1762500143806,7.21143315,3368.0,3367.5,0.4524]
[1762500143807,1.259712,3367.9,3367.5,0.4524]
[1762500144014,1.259712,3367.9,3367.5,0.001]
[1762500144184,2.9694738,3367.6,3367.5,0.001]
[1762500148038,2.9694738,3367.6,3367.5,0.4524]
[1762500148329,4.24026886,3367.7,3367.5,0.4524]
[1762500148732,7.20968519,3367.7,3367.5,0.4524]
[1762500148902,2.9694738,3367.6,3367.5,0.001]
[1762500149102,2.9714738,3367.6,3367.5,0.001]
[1762500150031,2.9694738,3367.6,3367.5,0.001]
[1762500150240,2.9714738,3367.6,3367.5,0.001]
[1762500151536,4.6386898,3367.6,3367.5,0.001]
[1762500151838,3.37559518,3366.9,3366.8,0.001]
[1762500152003,7.61786404,3366.9,3366.8,0.001]
[1762500152912,8.87957604,3366.9,3366.8,0.001]
[1762500154328,8.77869881,3366.9,3366.8,0.001]
[1762500156263,8.77669881,3366.9,3366.8,0.001]
[1762500159466,2.97009118,3366.9,3366.8,0.4936]
[1762500159769,0.405504,3367.1,3366.8,0.4936]
[1762500160063,3.37559518,3366.9,3366.8,0.4936]
[1762500160364,3.37759518,3366.9,3366.8,0.001]
[1762500160960,3.37959518,3366.9,3366.8,0.001]
[1762500162858,8.77869881,3366.9,3366.8,0.001]
[1762500166665,8.77669881,3366.9,3366.8,0.001]
[1762500172899,2.97009118,3366.9,3366.8,0.969]
[1762500173194,4.63530718,3366.9,3366.8,0.001]
[1762500176901,4.63730718,3366.9,3366.8,0.001]
[1762500177073,8.77869881,3366.9,3366.8,0.001]
[1762500181307,9.24468363,3366.9,3366.8,0.001]
[1762500181520,8.94768334,3366.9,3366.8,0.001]
[1762500182013,8.94568334,3366.9,3366.8,0.001]
[1762500182508,8.94368334,3366.9,3366.8,0.4781]
[1762500182713,8.47769852,3366.9,3366.8,0.4781]
[1762500184712,2.97009118,3366.9,3366.8,0.969]
[1762500184877,8.37119481,3366.9,3366.8,0.001]
[1762500185215,9.2446665,3366.9,3366.8,0.001]
[1762500185431,9.36371961,3366.9,3366.8,0.001]
[1762500185629,9.36371961,3366.9,3366.8,0.00546449]
[1762500186832,9.75922354,3366.9,3366.8,0.00546449]
[1762500187036,9.36371961,3366.9,3366.8,0.00546449]
[1762500187232,9.75922354,3366.9,3366.8,0.00546449]
[1762500187733,9.75922354,3366.9,3366.6,0.001]
[1762500187734,3.37577162,3366.7,3366.6,0.001]
[1762500187932,5.03298755,3366.7,3366.6,0.001]
[1762500188230,4.63948362,3366.7,3366.6,0.001]
[1762500188631,5.03498755,3366.7,3366.6,0.001]
[1762500189001,4.63583656,3366.3,3366.1,0.006]
[1762500189214,4.63792481,3366.2,3366.1,1e-08]
[1762500189428,5.03542874,3366.2,3366.1,1e-08]
[1762500190135,4.63992481,3366.2,3366.1,1e-08]
[1762500191006,5.16422134,3366.2,3366.1,1e-08]
[1762500192026,4.63992481,3366.2,3366.1,1e-08]
[1762500195475,5.10600691,3366.2,3366.1,1e-08]
[1762500196752,4.63992481,3366.2,3366.1,1e-08]
[1762500199672,5.10600466,3366.2,3366.1,1e-08]
[1762500200471,5.57208118,3366.2,3366.1,1e-08]
[1762500203980,5.96758511,3366.2,3366.1,1e-08]
[1762500204361,6.08667331,3366.2,3366.1,1e-08]
[1762500205365,6.08667331,3366.2,3366.1,1e-08]
[1762500208869,6.08467331,3366.2,3366.1,1e-08]
[1762500209086,5.68916938,3366.2,3366.1,1e-08]
[1762500213074,5.68716938,3366.2,3366.1,0.46960001]
[1762500213277,5.56808118,3366.2,3366.1,1.11470001]
[1762500213491,5.10200466,3366.2,3366.1,1.11470001]
[1762500214005,4.69650066,3366.2,3366.1,1.11470001]
[1762500214378,9.34868811,3366.2,3366.1,1.11470001]
[1762500215281,9.34868811,3366.2,3366.1,0.46960001]
[1762500215722,13.59537156,3366.2,3366.1,1e-08]
[1762500215928,9.34868811,3366.2,3366.1,1e-08]
[1762500216323,13.99087549,3366.2,3366.1,1e-08]
[1762500216516,9.81308811,3366.2,3366.1,0.46960001]
[1762500216695,9.81308811,3366.2,3366.1,0.93300001]
[1762500216894,9.34868811,3366.2,3366.1,0.93300001]
[1762500217317,4.63610132,3366.0,3365.9,0.001]
[1762500217812,4.63610132,3366.0,3365.9,0.4706]
[1762500218425,4.63610132,3366.0,3365.9,0.001]
[1762500218825,4.90830132,3366.0,3365.9,0.001]
[1762500219327,5.38760132,3366.0,3365.9,0.001]
[1762500221541,4.90830132,3366.0,3365.9,0.001]
[1762500221724,4.63610132,3366.0,3365.9,0.4966]
[1762500222643,0.1834,3365.2,3364.3,0.001]
[1762500222848,0.4922,3364.2,3363.9,0.001]
[1762500223001,3.37824397,3363.9,3363.8,0.001]
[1762500223203,3.37824397,3363.9,3363.4,0.001]
[1762500223204,4.63804434,3363.8,3363.4,0.001]
[1762500223496,0.405504,3363.5,3363.4,0.001]
[1762500223738,14.98382733,3363.5,3363.4,0.001]
[1762500223935,7.62554615,3363.2,3363.1,0.005]
[1762500224241,9.44309708,3363.2,3363.1,0.005]
[1762500224624,7.62554615,3363.2,3363.1,0.005]
[1762500224938,12.35613873,3363.2,3363.1,0.005]
[1762500225111,13.29063678,3363.2,3363.1,0.005]
[1762500225304,13.78313678,3363.2,3363.1,0.005]
[1762500225707,12.3647296,3363.2,3363.1,0.005]
[1762500226242,14.16853678,3363.2,3363.1,0.005]
[1762500226923,13.67603678,3363.2,3363.1,0.005]
[1762500227114,12.2576296,3363.2,3363.1,0.3904]
[1762500227305,13.67603678,3363.2,3363.1,0.005]
[1762500227502,13.67603678,3363.2,3361.3,0.148]
[1762500227503,2.97424305,3362.2,3361.8,0.3854]
[1762500227726,2.97424305,3362.2,3362.0,0.4873]
[1762500227727,7.6264305,3362.2,3362.0,0.4873]
[1762500227916,8.1350971,3362.2,3362.1,0.7758]
[1762500228218,8.61900623,3362.2,3362.1,0.7758]
[1762500228603,12.86568968,3362.2,3362.1,0.3904]
[1762500229429,9.11150623,3362.2,3362.1,0.005]
[1762500230411,12.35702308,3362.2,3362.1,0.005]
[1762500230612,12.35702308,3362.2,3362.1,0.3904]
[1762500230814,8.11033963,3362.2,3362.1,0.4923]
[1762500231034,7.2209265,3362.2,3362.1,0.8777]
[1762500233132,2.97424305,3362.2,3362.1,0.8777]
[1762500233304,7.2209265,3362.2,3362.1,0.8777]
[1762500233509,4.24668345,3362.2,3362.1,0.8777]
[1762500233698,4.24668345,3363.0,3362.1,0.8777]
[1762500233699,1.259712,3362.4,3362.1,0.8777]
[1762500233900,7.22067975,3362.5,3362.2,0.3854]